Cogmind - Beta 9.6 @@@ ROGUE MODE // 2020.08.11 @ 18:02:53 Player: Nori Result: Destroyed by G-47 Trooper with Particle Gun Performance ------------- Evolutions (1) 500 Regions Visited (2) 400 Robots Destroyed (14) 70 Value Destroyed (238) 238 Prototype IDs (2) 40 Alien Tech Used (0) 0 Bonus (0) 0 TOTAL SCORE: 1248 Bonus ------- None Cogmind --------- Core Integrity 0/400 Matter 253/300 Energy 85/100 System Corruption 0% Temperature Cool (15) Movement Rolling (100) Location -9/Materials Parts ------- > --- POWER (1) -------- (None) > --- PROPULSION (3) --- Compact Wheel Compact Wheel > --- UTILITY (3) ------ Small Storage Unit Large Storage Unit > --- WEAPON (2) ------- (None) > --- INVENTORY (12) --- Compact Wheel Peak State ------------ > --- POWER ------------ Ion Engine > --- PROPULSION ------- Aluminum Leg Aluminum Leg Aluminum Leg > --- UTILITY ---------- Improved Heat Sink Large Storage Unit Weight Redist. System > --- WEAPON ----------- EM Pulse Gun Light Assault Rifle > --- INVENTORY -------- Aluminum Leg Aluminum Leg Aluminum Leg Small Storage Unit Particle Gun [Rating: 12] Favorites ----------- Power Ion Engine Engine Ion Engine Power Core Light Nuclear Core Propulsion Aluminum Leg Leg Aluminum Leg Wheel Compact Wheel Utility Large Storage Unit Device Improved Heat Sink Storage Large Storage Unit Weapon Medium Laser Energy Gun Medium Laser Ballistic Gun Light Assault Rifle Build | -11 -10 -9 ------- Run | Scr Mat Mat Slots Evolved 2 | . . 2 Power . | . . . Propulsion 1 | . . 1 Utility 1 | . . 1 Weapon . | . . . Parts Attached 26 | 6 10 10 Power 4 | 1 2 1 Engine 3 | 1 1 1 Core 1 | . 1 . Reactor . | . . . Propulsion 11 | 2 3 6 Treads . | . . . Leg 9 | 2 3 4 Wheel 2 | . . 2 Hover . | . . . Flight . | . . . Utility 6 | 1 3 2 Device 3 | . 2 1 Storage 3 | 1 1 1 Processor . | . . . Hackware . | . . . Protection . | . . . Artifact . | . . . Weapon 5 | 2 2 1 Energy Gun 4 | 2 1 1 Energy Cannon . | . . . Ballistic Gun 1 | . 1 . Ballistic Cannon . | . . . Launcher . | . . . Special Weapon . | . . . Impact Weapon . | . . . Slashing Weapon . | . . . Piercing Weapon . | . . . Special Melee Weapon . | . . . Unidentified Prototypes . | . . . Parts Lost 16 | . 4 12 Power 4 | . 2 2 Propulsion 5 | . . 5 Utility 2 | . . 2 Weapon 5 | . 2 3 Highest Loss Streak 12 | . 2 12 Average Slot Usage (%) 86 | . 94 77 Engine 9 | . 9 9 Core 1 | . 2 . Leg 28 | . 28 28 Device 12 | . 13 11 Storage 13 | . 14 12 Energy Gun 13 | . 18 8 Ballistic Gun 7 | . 7 7 Naked Turns . | . . . Heaviest Build 30 | 13 25 30 Greatest Support 36 | 20 20 36 Greatest Overweight (x) 5 | . 1 5 Average Overweight (x) . | . . . Largest Inventory Capacity 12 | 6 10 12 Average Capacity 8 | 5 8 10 Most Carried 8 | 5 8 6 Average Carried 4 | 2 4 4 Final Capacity 12 | 6 10 12 Final Carried 6 | 3 6 1 Class Distribution -------------------- 88% | Mutant 11% | Scavenger-Mutant Dominant Class ---------------- Mutant | -10/Materials Mutant | -9/Materials Resources | -11 -10 -9 ----------- Run | Scr Mat Mat Matter Collected 412 | 251 88 73 Remotely . | . . . Salvage Created 352 | . 181 171 Parts 28 | . 12 16 Haulers Intercepted 1 | . . 1 Recyclers Shooed . | . . . Parts Field Recycled . | . . . Retrieved Matter . | . . . Parts Self-Destructed . | . . . Prevented . | . . . Kills | -11 -10 -9 ------- Run | Scr Mat Mat Combat Hostiles Destroyed 11 | . 4 7 Guns 11 | . 4 7 Classes Destroyed 5 | . 2 3 Worker 1 | . . 1 Hauler 1 | . . 1 Operator 1 | . 1 . Swarmer 7 | . . 7 Grunt 4 | . 4 . Best Kill Streak 9 | . 3 9 Combat Bots Only 7 | . 3 7 Max Kills in Single Turn 2 | . 1 2 Gunslinging . | . . . Exploded . | . . . Melee . | . . . Uniques/NPCs Destroyed . | . . . Combat | -11 -10 -9 -------- Run | Scr Mat Mat Damage Taken 1987 | . 539 1448 Core 501 | . 94 407 Absorbed by Shields . | . . . Core Remaining (%) 81 | 100 62 . Volleys Fired 45 | . 32 13 Largest 2 | . 2 2 Hottest 100 | . 100 60 Shots Fired 79 | . 53 26 Gun 79 | . 53 26 Cannon . | . . . Launcher . | . . . Special . | . . . Kinetic 42 | . 29 13 Thermal 24 | . 24 . Explosive . | . . . Electromagnetic 13 | . . 13 Robot Hit Streak 16 | . 16 7 Robot Miss Streak 1 | . 1 1 Penetration Max . | . . . Secondary Targets . | . . . Shots Hit Robots 61 | . 46 15 Core Hits 26 | . 14 12 Critical Hits 1 | . . 1 Critical Kills 1 | . . 1 Critical Parts Destroyed . | . . . Melee Attacks . | . . . Impact . | . . . Slashing . | . . . Piercing . | . . . Sneak Attacks . | . . . Combat Hostiles . | . . . Follow-up Attacks . | . . . Damage Inflicted 649 | . 459 190 Guns 573 | . 459 114 Cannons . | . . . Explosions 67 | . . 67 Melee . | . . . Ramming 9 | . . 9 Kinetic 231 | . 207 24 Thermal 319 | . 252 67 Explosive . | . . . Electromagnetic 90 | . . 90 Impact . | . . . Slashing . | . . . Piercing . | . . . Highest Corruption . | . . . Average Corruption . | . . . Corruption Purged . | . . . Overload Shots . | . . . Overflow Damage . | . . . Projectiles . | . . . Explosions . | . . . Melee . | . . . Knockbacks . | . . . Impact . | . . . Kinetic . | . . . Secondary . | . . . Self-Inflicted Damage 41 | . . 41 Shots 1 | . . 1 Rammed 3 | . . 3 Targets Rammed 3 | . . 3 Kicked . | . . . Crushed . | . . . Highest Temperature 233 | . 233 8 Average Temperature 71 | . 76 5 Received Heat Transfer 933 | . 306 627 Siege Activations . | . . . Robots Corrupted . | . . . Combat Hostiles . | . . . Parts Fried . | . . . Impact Corruptions . | . . . Robots Melted . | . . . Combat Hostiles . | . . . Parts Melted 1 | . . 1 Heat Transferred 890 | . 740 150 Parts Sabotaged . | . . . Parts Stolen . | . . . Parts Stripped . | . . . Power Chain Reactions 1 | . . 1 Missiles Intercepted . | . . . Alert | -11 -10 -9 ------- Run | Scr Mat Mat Peak Influence 244 | . 90 244 Average Influence 80 | . 43 141 Maximum Alert Level 1 | . . 1 Low Security (%) 82 | 100 100 59 Level 1 17 | . . 40 Level 2 . | . . . Level 3 . | . . . Level 4 . | . . . Level 5 . | . . . High Security . | . . . Max Security . | . . . Squads Dispatched 5 | . 3 2 Investigation 3 | . 1 2 Extermination . | . . . Reinforcement 2 | . 2 . Assault . | . . . Garrison . | . . . Intercept . | . . . Construction Impeded . | . . . Haulers Reinforced . | . . . Stealth | -11 -10 -9 --------- Run | Scr Mat Mat Distress Signals 3 | . 1 2 Communications Jammed . | . . . Distress Signals . | . . . Times Spotted 32 | . 12 20 Peak Tracking Total 10 | . 8 10 Tactical Retreats 3 | . 3 . Traps | -11 -10 -9 ------- Run | Scr Mat Mat Traps Triggered 1 | . 1 . Indirectly . | . . . Trap Hack Attempts . | . . . Triggered . | . . . Disarmed . | . . . Reprogrammed . | . . . Reused . | . . . Traps Extracted . | . . . Installed . | . . . Triggered . | . . . Machines | -11 -10 -9 ---------- Run | Scr Mat Mat Machines Disabled . | . . . Max in Single Turn . | . . . Machines Sabotaged . | . . . Garrisons Compromised . | . . . Overloaded Fab Kills . | . . . Fab Network Shutdowns . | . . . Hacking | -11 -10 -9 --------- Run | Scr Mat Mat Machines Accessed 3 | . 1 2 Terminals 3 | . 1 2 Fabricators . | . . . Repair Stations . | . . . Recycling Units . | . . . Scanalyzers . | . . . Garrison Access . | . . . Total Hacks 11 | . 3 8 Successful 5 | . 1 4 Failed 5 | . 2 3 Catastrophic 2 | . . 2 Database Lockouts 1 | . . 1 Manual 5 | . . 5 Terminals 11 | . 3 8 Fabricators . | . . . Repair Stations . | . . . Recycling Units . | . . . Scanalyzers . | . . . Garrison Access . | . . . Terminal Hacks 5 | . 1 4 Part Schematic 1 | . . 1 Prototype ID Bank 1 | . 1 . Branch Access Points 1 | . . 1 Maintenance Status 1 | . . 1 Transport Status 1 | . . 1 Fabricator Hacks . | . . . Repair Station Hacks . | . . . Recycling Unit Hacks . | . . . Scanalyzer . | . . . Garrison Access Hacks . | . . . Unauthorized Hacks . | . . . Terminals . | . . . Fabricators . | . . . Repair Stations . | . . . Recycling Units . | . . . Scanalyzers . | . . . Garrison Access . | . . . Data Cores Recovered . | . . . Used . | . . . Hacking Detections 3 | . 1 2 Full Trace Events 1 | . . 1 Feedback Events . | . . . Feedback Blocked . | . . . Robot Schematics Acquired . | . . . Robots Built . | . . . Matter . | . . . Time . | . . . Total Robot Build Rating . | . . . Part Schematics Acquired 1 | . . 1 Parts Built . | . . . Matter . | . . . Time . | . . . Total Part Build Rating . | . . . Parts Repaired . | . . . Time . | . . . Parts Recycled . | . . . Recycled Matter . | . . . Retrieved Matter . | . . . Retrieved Components . | . . . Parts Scanalyzed . | . . . Part Schematics Acquired . | . . . Parts Damaged . | . . . Bothacking | -11 -10 -9 ------------ Run | Scr Mat Mat Used RIF Installer . | . . . Robots Hacked . | . . . Non-combat . | . . . Combat . | . . . Robot Hacks Applied . | . . . Relay Couplers Released . | . . . Robots Rewired . | . . . Allies Hacked . | . . . Hacks Repelled . | . . . Allies | -11 -10 -9 -------- Run | Scr Mat Mat Total Allies . | . . . Largest Group . | . . . Highest-Rated Group . | . . . Highest-Rated Ally . | . . . Total Orders . | . . . Ally Attacks . | . . . Total Damage . | . . . Kills . | . . . Allies Corrupted . | . . . Allies Melted . | . . . Intel | -11 -10 -9 ------- Run | Scr Mat Mat Robot Analysis Total . | . . . Derelict Logs Recovered . | . . . Drone Launches . | . . . Drone Recoveries . | . . . Exploration | -11 -10 -9 ------------- Run | Scr Mat Mat Turns Passed 674 | 64 328 282 Spaces Moved 381 | 47 158 176 Core 10 | 9 . 1 Treads . | . . . Legs 366 | 38 158 170 Wheels 5 | . . 5 Hover . | . . . Flight . | . . . Fastest Speed 50 | 50 120 100 Average Speed 122 | 106 125 124 Slowest Speed 300 | 120 150 300 Overloaded Moves . | . . . Propulsion Burnouts . | . . . Robots Hopped . | . . . Cave-ins Triggered . | . . . Exploration Rate (%) 24 | 4 37 31 Regions Visited 2 Branch Regions . Pre-discovered Areas . | . . . Known Exits Taken . | . . . Unknown Exits Taken 2 | 1 1 . Scrap Searched . | . . . Spaces Dug . | . . . Terrain Destroyed 2 | . . 2 Melee . | . . . Projectile . | . . . AOE 2 | . . 2 Actions | -11 -10 -9 --------- Run | Scr Mat Mat Total 518 | 61 241 216 Wait 30 | . 24 6 Move 379 | 46 157 176 Hop . | . . . Pick Up 28 | 9 13 6 Fast Attach . | . . . Attach 21 | 6 5 10 Detach . | . . . Swap 5 | . 5 . Drop 7 | . 5 2 Fire 45 | . 32 13 Melee . | . . . Ram . | . . . Kick 3 | . . 3 Crush . | . . . Escape Stasis . | . . . Rewire . | . . . Trap . | . . . Miscellaneous . | . . . Route ------- -11/Scrapyard -10/Materials -9/Materials (discovered 2 exits: Min / Sto) History --------- Turn | Location | Event 9 | -11/Scrapyard | Discovered new exit (range 15) 65 | -11/Scrapyard | Entered Materials 211 | -10/Materials | Discovered new exit (range 16) 302 | -10/Materials | Build established: Mutant 393 | -10/Materials | Entered another Materials area 393 | -9/Materials | Evolved 2 slots: Propulsion x1, Utility x1 522 | -9/Materials | Destroyed 7 combat bots 553 | -9/Materials | Identified exit to Mines 553 | -9/Materials | Identified exit to Storage 553 | -9/Materials | Central database locked down 650 | -9/Materials | Core integrity fell below 50% 661 | -9/Materials | Core integrity fell below 20% 675 | -9/Materials | Destroyed by G-47 Trooper with Particle Gun Last Messages --------------- 00616_ Weight Redist. System destroyed. 00617_ K-01 Serf collects debris. 00618_ Aluminum Leg destroyed. 00622_ K-01 Serf collects debris. 00623_ Ion Engine destroyed. 00623_ G-34 Mercenary destroyed. 00624_ Slammed into Y-45 Defender. 00624_ Destabilizing: System interference. 00624_ Particle Gun temporarily disabled. 00625_ Slammed into Y-45 Defender. 00625_ Destabilizing: Core damaged (-16). 00632_ Aluminum Leg destroyed. 00635_ Particle Gun destroyed. 00638_ Acquired Rnf. Ion Engine. 00644_ Acquired Com. Wheel. 00655_ Slammed into Y-45 Defender. 00656_ G-34 Mercenary destroyed. 00657_ Aluminum Leg destroyed. 00663_ Rnf. Ion Engine destroyed. 00668_ Dropped Aluminum Leg. Map ----- +----------------------------------------------------+ | | | | | | | | | | | | | | | | | | | | | | | | | ??????????????????????????#########??????????????? | | ??????????????????????????# #?????????????? | | ??????????????????????????#""" [ #?????????????? | | ??????????????????????????#""" #?????????????? | | ??????????????????????????#""" ** #?????????????? | | ??????????????????????????# =* #?????????????? | | ?????????????????#####????#""" [%= #?????????????? | | ?????????????????#!!!!!???#""" *! ##????????????? | | ?????????????????#!!!!!???#""" #????????????? | | ?????????????????# ??# #######???????? | | ??????????? g#### ########g### ######### | | ??????????# gg =g Y | | ??????????# gY T | | ??????????# w u @ u a | | ??????????? """ ##########+### ###/##??? | | ????????????????""""?????# % ###+#####?????? | | ?????????????????"???????# # #?????? | | ?????????????????????????# """" # #?????? | | ?????????????????????????# """"=% # #?????? | | ?????????????????????????# """" [ # """"" #?????? | | ?????????????????????????# # """"" #?????? | | ?????????????????????????# ! # """"" #?????? | | ?????????????????????????# # #?????? | | ?????????????????????????###########] " " #?????? | | ???????????????????????????????????# "R" #?????? | | ???????????????????????????????????# """ #?????? | | ?????????????????????????????????>?# #?????? | | ???????????????????????????????????##+############ | | ???????????????????????????????? ??# | | ?????????????????????????????#####+## | | ?????????????????????????????+ | | ?????????????????????????????# ####### | | ????????????????????????? #?????? | | ???????????????????????? ####### | | ????????????????????????? | | ?????????????????????????############### | | ???????????????????????????????????????# " | | ???????????????????????????????????????# """ T | +----------------------------------------------------+ Best States ------------- Heat Dissipation 42 Energy Generation 14 Energy Capacity 265 Matter Stores 300 Matter Capacity 300 Sight Range 16 Robot Scan Range 10 Terrain Scan Density 10 Additional Mass Support 6 Evasion (%) 50 Item Schematics ----------------- Imp. Hover Unit | -9/Materials | Hacked Robot Schematics ------------------ None Fabricated ------------ Nothing Alien Tech Used ----------------- None Achievements -------------- None Challenges ------------ None Game ------ Seed ElectronFieldRegulator Manual? 0 Play Time 00:10:51 Cumulative 105.0 hours Start 2020.08.11 @ 17:50:45 End 2020.08.11 @ 18:02:53 Sessions 1 Manual Loads 0 Difficulty Rogue Special Mode None Game No. 59 Rogue 59 Adventurer 0 Explorer 0 Win Type - Total 1 Types 0/0/0/1/0/0/0 Lore% 26 Gallery% 57 Achievement% 41 Wizard Run 0 Options --------- ASCII 0 Keyboard 0 Movement Numpad Keybinds 0 Fullscreen 2 Font 20/SmallcapsGlow Map View 66x50 Tactical HUD 1 Map Filters NONE Filters NONE Steam 1 RUN: f8eacf9b-48c2-41cc-9891-26323412fd22